Workbook

Sheet паспорт
A1: ПАТ "УКРТРАНСГАЗ" | G1: ПАСПОРТ ФІЗИКО-ХІМІЧНИХ ПОКАЗНИКІВ ПРИРОДНОГО ГАЗУ № 808
A2: Філія "УМГ "Черкаситрансгаз" | G2: переданого Барським ЛВУМГ та прийнятого ПАТ "Вінницягаз" та ПАТ "Укртелеком"
A3: Барський п/м Барське ЛВУМГ | G3: Маршрут №808
A4: Вимірювальна хіміко-аналітична лабораторія
A5: Свідоцтво № ПУ-0124/15 чинно до 20.10.2018 р. | K5: по газопроводу "СОЮЗ" | V5: за період з | X5: 2017-03-01 | Z5: по | AA5: 2017-03-31
A7: Число місяця | B7: Компонентний склад, % мол. | N7: Фізико-хімічні показники газу обчислені на основі компонентного складу, 101,325 кПа | X7: Температура точки роси за вологою (Р = 3.92 МПа), ºС | Y7: Температура точки роси за вуглеводнями, ºС | Z7: Вміст сірководню, г/м3 | AA7: Вміст меркаптанової сірки, г/м3 | AB7: Вміст механічних домішок, г/м3
N8: Густина абсолютна, кг/м3,при 20 ºС, | O8: Температура вимірювання/згоряння при 20/25°С
B9: метан, С1 | C9: етан, С2 | D9: пропан, С3 | E9: ізо-бутан, і-С4 | F9: н-бутан, н-С4 | G9: нео-пентан, нео-С5 | H9: ізо-пентан, і-С5 | I9: н-пентан, н-С5 | J9: гексани та вищі, С6+ | K9: кисень, О2 | L9: азот, N2 | M9: діоксид вуглецю, CО2 | O9: Теплота згоряння нижча | R9: Теплота згоряння вища | U9: Число Воббе вище
O10: ккал/м3 | P10: МДж/м3 | Q10: кВт⋅год/м3 | R10: ккал/м3 | S10: МДж/м3 | T10: кВт⋅год/м3 | U10: ккал/м3 | V10: МДж/м3 | W10: кВт⋅год/м3
A11: 1 | O11: 8114 | P11: 33.97 | Q11: =P11/3.6 -> 9.436111111 | R11: 9000 | S11: 37.68 | T11: =S11/3.6 -> 10.46666667 | AC11: =SUM(B11:M11)+$K$42+$N$42 -> 0
A12: 2 | B12: 96.2567 | C12: 2.056 | D12: 0.6303 | E12: 0.0964 | F12: 0.0944 | G12: 0.0013 | H12: 0.0176 | I12: 0.0114 | J12: 0.0097 | K12: 0.0071 | L12: 0.6654 | M12: 0.1538 | N12: 0.6972 | O12: 8171 | P12: 34.21 | Q12: 9.502777778 | R12: 9062 | S12: 37.94 | T12: 10.53888889 | U12: 11911 | V12: 49.87 | W12: =V12/3.6 -> 13.85277778 | AC12: 100.0001
A13: 3 | O13: 8171 | P13: 34.21 | Q13: 9.502777778 | R13: 9062 | S13: 37.94 | T13: 10.53888889 | AC13: 0 | AD13: =IF(AC13=100,"ОК"," ") -> 
A14: 4 | O14: 8171 | P14: 34.21 | Q14: 9.502777778 | R14: 9062 | S14: 37.94 | T14: 10.53888889 | AC14: 0 | AD14: =IF(AC14=100,"ОК"," ") -> 
A15: 5 | O15: 8171 | P15: 34.21 | Q15: 9.502777778 | R15: 9062 | S15: 37.94 | T15: 10.53888889 | AC15: 0
A16: 6 | O16: 8171 | P16: 34.21 | Q16: 9.502777778 | R16: 9062 | S16: 37.94 | T16: 10.53888889 | AC16: 0
A17: 7 | O17: 8171 | P17: 34.21 | Q17: 9.502777778 | R17: 9062 | S17: 37.94 | T17: 10.53888889 | AC17: 0
A18: 8 | O18: 8171 | P18: 34.21 | Q18: 9.502777778 | R18: 9062 | S18: 37.94 | T18: 10.53888889 | AC18: 0
A19: 9 | O19: 8171 | P19: 34.21 | Q19: 9.502777778 | R19: 9062 | S19: 37.94 | T19: 10.53888889 | AC19: 0
A20: 10 | B20: 96.3661 | C20: 1.9638 | D20: 0.5834 | E20: 0.0887 | F20: 0.0869 | G20: 0.0011 | H20: 0.0164 | I20: 0.0108 | J20: 0.0094 | K20: 0.0082 | L20: 0.7273 | M20: 0.138 | N20: 0.6959 | O20: 8153 | P20: 34.13 | Q20: =P20/3.6 -> 9.480555556 | R20: 9042 | S20: 37.86 | T20: =S20/3.6 -> 10.51666667 | U20: 11895 | V20: 49.8 | W20: =V20/3.6 -> 13.83333333 | Z20: 0 | AA20: 0 | AB20: 0 | AC20: 100.0001
A21: 11 | O21: 8153 | P21: 34.13 | Q21: 9.480555556 | R21: 9042 | S21: 37.86 | T21: 10.51666667 | AC21: 0
A22: 12 | O22: 8153 | P22: 34.13 | Q22: 9.480555556 | R22: 9042 | S22: 37.86 | T22: 10.51666667 | AC22: 0
A23: 13 | O23: 8153 | P23: 34.13 | Q23: 9.480555556 | R23: 9042 | S23: 37.86 | T23: 10.51666667 | AC23: 0
A24: 14 | O24: 8153 | P24: 34.13 | Q24: 9.480555556 | R24: 9042 | S24: 37.86 | T24: 10.51666667 | AC24: 0
A25: 15 | O25: 8153 | P25: 34.13 | Q25: 9.480555556 | R25: 9042 | S25: 37.86 | T25: 10.51666667 | AC25: 0
A26: 16 | B26: 95.9276 | C26: 2.2661 | D26: 0.7041 | E26: 0.1101 | F26: 0.1072 | G26: 0.0013 | H26: 0.0202 | I26: 0.0133 | J26: 0.012 | K26: 0.0099 | L26: 0.6638 | M26: 0.1643 | N26: 0.7 | O26: 8199 | P26: 34.33 | Q26: =P26/3.6 -> 9.536111111 | R26: 9092 | S26: 38.07 | T26: =S26/3.6 -> 10.575 | U26: 11926 | V26: 49.93 | W26: 13.86944444 | X26: -22 | AC26: 99.9999
A27: 17 | O27: 8199 | P27: 34.33 | Q27: 9.536111111 | R27: 9092 | S27: 38.07 | T27: 10.575 | AC27: 0
A28: 18 | O28: 8199 | P28: 34.33 | Q28: 9.536111111 | R28: 9092 | S28: 38.07 | T28: 10.575 | AC28: 0
A29: 19 | O29: 8199 | P29: 34.33 | Q29: 9.536111111 | R29: 9092 | S29: 38.07 | T29: 10.575 | AC29: 0
A30: 20 | O30: 8199 | P30: 34.33 | Q30: 9.536111111 | R30: 9092 | S30: 38.07 | T30: 10.575 | AC30: 0 | AD30: =IF(AC30=100,"ОК"," ") -> 
A31: 21 | O31: 8199 | P31: 34.33 | Q31: 9.536111111 | R31: 9092 | S31: 38.07 | T31: 10.575 | AC31: 0
A32: 22 | B32: 96.1463 | C32: 2.117 | D32: 0.6563 | E32: 0.1029 | F32: 0.1001 | G32: 0.0012 | H32: 0.0189 | I32: 0.0122 | J32: 0.0105 | K32: 0.0113 | L32: 0.6886 | M32: 0.1348 | N32: 0.698 | O32: 8181 | P32: 34.25 | Q32: 9.513888889 | R32: 9072 | S32: 37.98 | T32: 10.55 | U32: 11917 | V32: 49.89 | W32: =V32/3.6 -> 13.85833333 | AC32: 100.0001
A33: 23 | O33: 8181 | P33: 34.25 | Q33: =P33/3.6 -> 9.513888889 | R33: 9072 | S33: 37.98 | T33: =S33/3.6 -> 10.55 | AC33: 0 | AD33: =IF(AC33=100,"ОК"," ") -> 
A34: 24 | O34: 8181 | P34: 34.25 | Q34: 9.513888889 | R34: 9072 | S34: 37.98 | T34: 10.55 | AC34: 0
A35: 25 | O35: 8181 | P35: 34.25 | Q35: 9.513888889 | R35: 9072 | S35: 37.98 | T35: 10.55 | AC35: 0
A36: 26 | O36: 8181 | P36: 34.25 | Q36: 9.513888889 | R36: 9072 | S36: 37.98 | T36: =S36/3.6 -> 10.55 | AC36: 0
A37: 27 | O37: 8181 | P37: 34.25 | Q37: 9.513888889 | R37: 9072 | S37: 37.98 | T37: 10.55 | AC37: 0
A38: 28 | B38: 95.8439 | C38: 2.3274 | D38: 0.7315 | E38: 0.1159 | F38: 0.1122 | G38: 0.0014 | H38: 0.0207 | I38: 0.0135 | J38: 0.0116 | K38: 0.0087 | L38: 0.6515 | M38: 0.1618 | N38: 0.7008 | O38: 8210 | P38: 34.37 | Q38: 9.547222222 | R38: 9103 | S38: 38.11 | T38: 10.58611111 | U38: 11934 | V38: 49.97 | W38: =V38/3.6 -> 13.88055556 | AC38: 100.0001
A39: 29 | O39: 8210 | P39: 34.37 | Q39: 9.547222222 | R39: 9103 | S39: 38.11 | T39: =S11/3.6 -> 10.46666667 | AC39: 0
A40: 30 | O40: 8210 | P40: 34.37 | Q40: 9.547222222 | R40: 9103 | S40: 38.11 | T40: =S40/3.6 -> 10.58611111 | AC40: 0
A41: 31 | O41: 8210 | P41: 34.37 | Q41: 9.547222222 | R41: 9103 | S41: 38.11 | T41: 10.58611111 | AC41: 0
B42: Рівень одоризації відповідає чинним нормативним документам | O42: 8178 | P42: 34.24 | Q42: 9.51 | R42: 9068 | S42: 37.97 | T42: 10.55
H43: Середньозважене значення теплоти згоряння:
B46: Начальник управління Барського ЛВУМГ Мандра В.В.
C47: Підрозділу підприємства, якому підпорядкована лабораторія | O47: прізвище | R47: підпис
B48: Начальник лабораторії Ільницька Г.О.
C49: Лабораторія, де здійснювалось вимірювання газу | O49: прізвище | R49: підпис

Sheet variablesList (hidden)
A1: 3 | B1: x:\gaysin | C1: 10, 11, 24, 25, 127, 128, 132, 180, 207, 215 | D1: x:\
B2: x:\Illinci
B3: x:\Talne

Sheet Додаток
A2: Додаток до Паспорту фізико-хімічних показників природного газу №808
A4: Область | B4: ГРС, прямий споживач | C4: Cередньозважене значення вищої теплоти згоряння
C5: МДж/м³ | D5: ккал/м³ | E5: кВт*год./м³
A6: Вінницька область | B6: ГРС Бар | C6: ='[1]розрахунок №808'!$C40 -> 37.9651493 | D6: ='[1]розрахунок №808'!$C41 -> 9067.820254 | E6: ='[1]розрахунок №808'!$C42 -> 10.54587481
B7: ГРС Жмеринка | C7: ='[1]розрахунок №808'!$D40 -> 37.96582865 | D7: ='[1]розрахунок №808'!$D41 -> 9067.982514 | E7: ='[1]розрахунок №808'!$D42 -> 10.54606351
B8: ГРСДашківці (відвід на с.Ялтушків) | C8: ='[1]розрахунок №808'!$E40 -> 37.96539988 | D8: ='[1]розрахунок №808'!$E41 -> 9067.880104 | E8: ='[1]розрахунок №808'!$E42 -> 10.54594441
B9: КС-19 SP-3 | C9: ='[1]розрахунок №808'!$F40 -> 37.9651493 | D9: ='[1]розрахунок №808'!$F41 -> 9067.820254 | E9: ='[1]розрахунок №808'!$F42 -> 10.54587481
A10: Середньозважене значення вищої теплоти згоряння по маршруту № 808 | C10: =AVERAGEIF(C6:C9,">0",C6:C9) -> 37.96538179 | D10: =AVERAGEIF(D6:D9,">0",D6:D9) -> 9067.875781 | E10: 10.54593938
A14: Начальник управління Барського ЛВУМГ Мандра В.В.
A15: Підрозділу підприємства, якому підпорядкована лабораторія | D15: прізвище | E15: підпис | F15: дата
A16: Начальник лабораторії Ільницька Г.І.
A17: Лабораторія, де здійснювалось вимірювання газу | D17: прізвище | E17: підпис | F17: дата

Sheet Лист2 (hidden)

Sheet Лист3 (hidden)
